[Event "Titled Tuesday Blitz October 18 Late 2022"]
[White "Vujic, Mihailo"]
[Black "Fernandez De La Vara, Arnaldo"]
[WhiteFideId "918873"]
[BlackFideId "3518388"]
[WhiteElo "2256"]
[BlackElo "2387"]
[Result "0-1"]
[Round "09"]
[TimeControl "180+1"]
[Date "2022.10.19"]
[WhiteClock "0:00:53"]
[BlackClock "0:01:13"]

1. e4 {[%clk 0:02:55]}  c5 {[%clk 0:03:00]} 2. c3 {[%clk 0:02:55]}  d5 {[%clk 0:03:00]} 3. exd5 {[%clk 0:02:54]}  Qxd5 {[%clk 0:03:01]} 4. d4 {[%clk 0:02:55]}  Nc6 {[%clk 0:03:01]} 5. Nf3 {[%clk 0:02:55]}  Nf6 {[%clk 0:03:02]} 6. Nbd2 {[%clk 0:02:54]}  cxd4 {[%clk 0:03:01]} 7. Bc4 {[%clk 0:02:53]}  Qd8 {[%clk 0:02:44]} 8. Qb3 {[%clk 0:02:52]}  e6 {[%clk 0:02:43]} 9. cxd4 {[%clk 0:02:50]}  Be7 {[%clk 0:02:24]} 10. O-O {[%clk 0:02:46]}  O-O {[%clk 0:02:25]} 11. Qe3 {[%clk 0:02:26]}  Nd5 {[%clk 0:02:19]} 12. Qe4 {[%clk 0:02:24]}  Nf6 {[%clk 0:01:56]} 13. Qh4 {[%clk 0:02:21]}  b6 {[%clk 0:01:46]} 14. Bd3 {[%clk 0:02:21]}  Nb4 {[%clk 0:01:40]} 15. Bb1 {[%clk 0:02:19]}  Ba6 {[%clk 0:01:39]} 16. Re1 {[%clk 0:02:18]}  Bd3 {[%clk 0:01:37]} 17. a3 {[%clk 0:01:47]}  Bxb1 {[%clk 0:01:35]} 18. Rxb1 {[%clk 0:01:44]}  Nd3 {[%clk 0:01:35]} 19. Re3 {[%clk 0:01:40]}  Nxc1 {[%clk 0:01:34]} 20. Rxc1 {[%clk 0:01:39]}  Nd5 {[%clk 0:01:35]} 21. Qh5 {[%clk 0:01:34]}  Nxe3 {[%clk 0:01:31]} 22. fxe3 {[%clk 0:01:35]}  Rc8 {[%clk 0:01:29]} 23. Rf1 {[%clk 0:01:33]}  Rc2 {[%clk 0:01:25]} 24. Ne4 {[%clk 0:01:32]}  Qd5 {[%clk 0:01:17]} 25. Nfg5 {[%clk 0:00:56]}  Bxg5 {[%clk 0:01:13]} 26. Nxg5 {[%clk 0:00:53]}  Qxg2# {[%clk 0:01:13]} 0-1


[Site "https://www.chess.com"]

[Event "Titled Tuesday Blitz October 18 Late 2022"]
[White "Wiegmann, Sascha"]
[Black "Ozen, Batuhan"]
[WhiteFideId "4682041"]
[BlackFideId "6345123"]
[WhiteElo "2293"]
[BlackElo "2403"]
[Result "1-0"]
[Round "09"]
[TimeControl "180+1"]
[Date "2022.10.19"]
[WhiteClock "0:00:10"]
[BlackClock "0:01:04"]

1. Nf3 {[%clk 0:02:06]}  d5 {[%clk 0:02:56]} 2. g3 {[%clk 0:02:06]}  Nc6 {[%clk 0:02:53]} 3. d4 {[%clk 0:02:04]}  Bg4 {[%clk 0:02:51]} 4. Nbd2 {[%clk 0:02:04]}  f6 {[%clk 0:02:50]} 5. Bg2 {[%clk 0:02:04]}  e5 {[%clk 0:02:50]} 6. O-O {[%clk 0:01:47]}  Qd7 {[%clk 0:02:46]} 7. dxe5 {[%clk 0:01:36]}  fxe5 {[%clk 0:02:46]} 8. e4 {[%clk 0:01:37]}  d4 {[%clk 0:02:40]} 9. h3 {[%clk 0:01:30]}  Bxh3 {[%clk 0:02:38]} 10. Nxe5 {[%clk 0:01:30]}  Nxe5 {[%clk 0:02:10]} 11. Qh5+ {[%clk 0:01:29]}  Nf7 {[%clk 0:02:06]} 12. Bxh3 {[%clk 0:01:09]}  Qc6 {[%clk 0:02:05]} 13. Qe2 {[%clk 0:00:42]}  Be7 {[%clk 0:01:59]} 14. Nb3 {[%clk 0:00:37]}  Rd8 {[%clk 0:01:56]} 15. e5 {[%clk 0:00:32]}  Ngh6 {[%clk 0:01:43]} 16. e6 {[%clk 0:00:19]}  Ng5 {[%clk 0:01:42]} 17. Bxg5 {[%clk 0:00:17]}  Bxg5 {[%clk 0:01:43]} 18. Qh5+ {[%clk 0:00:18]}  g6 {[%clk 0:01:30]} 19. Qxg5 {[%clk 0:00:18]}  Ng8 {[%clk 0:01:30]} 20. e7 {[%clk 0:00:16]}  Rd5 {[%clk 0:01:24]} 21. Qf4 {[%clk 0:00:13]}  Nxe7 {[%clk 0:01:18]} 22. Rfe1 {[%clk 0:00:13]}  Kd8 {[%clk 0:01:18]} 23. Nxd4 {[%clk 0:00:12]}  Qd6 {[%clk 0:01:14]} 24. Ne6+ {[%clk 0:00:11]}  Ke8 {[%clk 0:01:11]} 25. Nxc7+ {[%clk 0:00:10]}  Kd8 {[%clk 0:01:07]} 26. Nxd5 {[%clk 0:00:10]}  Qxf4 {[%clk 0:01:04]} 27. Nxf4 {[%clk 0:00:11]}  Kc7 {[%clk 0:01:04]} 28. Rxe7+ {[%clk 0:00:10]} 1-0


[Site "https://www.chess.com"]

[Event "Titled Tuesday Blitz October 18 Late 2022"]
[White "Winkels, Marcel"]
[Black "Jimenez Fernandez, Rebeca"]
[WhiteFideId "1003887"]
[BlackFideId "32070934"]
[WhiteElo "1900"]
[BlackElo "1946"]
[Result "1-0"]
[Round "09"]
[TimeControl "180+1"]
[Date "2022.10.19"]
[WhiteClock "0:00:53"]
[BlackClock "0:00:08"]

1. d4 {[%clk 0:03:00]}  Nf6 {[%clk 0:02:57]} 2. Nc3 {[%clk 0:03:01]}  g6 {[%clk 0:02:58]} 3. Bf4 {[%clk 0:03:01]}  Bg7 {[%clk 0:02:58]} 4. e3 {[%clk 0:03:00]}  O-O {[%clk 0:02:59]} 5. h3 {[%clk 0:02:56]}  d6 {[%clk 0:02:59]} 6. Nf3 {[%clk 0:02:55]}  a6 {[%clk 0:02:59]} 7. a4 {[%clk 0:02:49]}  b6 {[%clk 0:02:58]} 8. Bc4 {[%clk 0:02:45]}  Bb7 {[%clk 0:02:58]} 9. O-O {[%clk 0:02:43]}  Nbd7 {[%clk 0:02:58]} 10. Re1 {[%clk 0:02:37]}  c5 {[%clk 0:02:52]} 11. d5 {[%clk 0:02:34]}  Rb8 {[%clk 0:02:38]} 12. e4 {[%clk 0:02:33]}  Nh5 {[%clk 0:02:09]} 13. Bg5 {[%clk 0:02:32]}  Ne5 {[%clk 0:02:03]} 14. Be2 {[%clk 0:02:13]}  Nxf3+ {[%clk 0:01:53]} 15. Bxf3 {[%clk 0:02:12]}  Nf6 {[%clk 0:01:53]} 16. Be2 {[%clk 0:02:12]}  Nd7 {[%clk 0:01:53]} 17. f4 {[%clk 0:02:10]}  Bd4+ {[%clk 0:01:48]} 18. Kh1 {[%clk 0:02:06]}  Nf6 {[%clk 0:01:48]} 19. Bf3 {[%clk 0:01:58]}  Bc8 {[%clk 0:01:42]} 20. e5 {[%clk 0:01:52]}  dxe5 {[%clk 0:01:33]} 21. fxe5 {[%clk 0:01:51]}  Nd7 {[%clk 0:01:16]} 22. d6 {[%clk 0:01:50]}  Re8 {[%clk 0:00:41]} 23. Nd5 {[%clk 0:01:34]}  Nxe5 {[%clk 0:00:35]} 24. Nxe7+ {[%clk 0:01:32]}  Kg7 {[%clk 0:00:22]} 25. Qd2 {[%clk 0:01:30]}  Qxd6 {[%clk 0:00:20]} 26. Bh6+ {[%clk 0:01:29]}  Kh8 {[%clk 0:00:20]} 27. Nc6 {[%clk 0:01:12]}  Bb7 {[%clk 0:00:18]} 28. Nxe5 {[%clk 0:01:10]}  Bxe5 {[%clk 0:00:18]} 29. Qxd6 {[%clk 0:01:09]}  Bxd6 {[%clk 0:00:19]} 30. Rxe8+ {[%clk 0:01:07]}  Rxe8 {[%clk 0:00:19]} 31. Bxb7 {[%clk 0:01:07]}  Bf8 {[%clk 0:00:19]} 32. Bxf8 {[%clk 0:01:06]}  Rxf8 {[%clk 0:00:20]} 33. Bxa6 {[%clk 0:01:06]}  Rd8 {[%clk 0:00:20]} 34. Bd3 {[%clk 0:01:05]}  Kg7 {[%clk 0:00:19]} 35. Re1 {[%clk 0:01:03]}  Rd4 {[%clk 0:00:19]} 36. b3 {[%clk 0:01:03]}  Rd6 {[%clk 0:00:17]} 37. Re7 {[%clk 0:01:02]}  Kf6 {[%clk 0:00:17]} 38. Rb7 {[%clk 0:01:00]}  h5 {[%clk 0:00:15]} 39. Rc7 {[%clk 0:01:00]}  Re6 {[%clk 0:00:14]} 40. Kg1 {[%clk 0:00:58]}  Re1+ {[%clk 0:00:14]} 41. Kf2 {[%clk 0:00:59]}  Re5 {[%clk 0:00:13]} 42. Rc6+ {[%clk 0:00:55]}  Kg5 {[%clk 0:00:13]} 43. Rxb6 {[%clk 0:00:55]}  f5 {[%clk 0:00:12]} 44. a5 {[%clk 0:00:55]}  Re7 {[%clk 0:00:09]} 45. a6 {[%clk 0:00:54]}  f4 {[%clk 0:00:08]} 46. Rb7 {[%clk 0:00:53]} 1-0


[Site "https://www.chess.com"]

[Event "Titled Tuesday Blitz October 18 Late 2022"]
[White "Yurtseven, Melih"]
[Black "Rose, Felix"]
[WhiteFideId "6312160"]
[BlackFideId "5105722"]
[WhiteElo "2218"]
[BlackElo "2039"]
[Result "1-0"]
[Round "09"]
[TimeControl "180+1"]
[Date "2022.10.19"]
[WhiteClock "0:00:45"]
[BlackClock "0:00:11"]

1. b3 {[%clk 0:03:00]}  e5 {[%clk 0:02:53]} 2. Bb2 {[%clk 0:03:01]}  Nc6 {[%clk 0:02:53]} 3. e3 {[%clk 0:03:02]}  Nf6 {[%clk 0:02:51]} 4. Bb5 {[%clk 0:03:01]}  Bd6 {[%clk 0:02:49]} 5. Ne2 {[%clk 0:03:01]}  a6 {[%clk 0:02:48]} 6. Bxc6 {[%clk 0:03:00]}  dxc6 {[%clk 0:02:48]} 7. d3 {[%clk 0:03:01]}  Bg4 {[%clk 0:02:44]} 8. e4 {[%clk 0:03:00]}  Qd7 {[%clk 0:02:38]} 9. h3 {[%clk 0:02:59]}  Bh5 {[%clk 0:02:32]} 10. g4 {[%clk 0:02:57]}  Bg6 {[%clk 0:02:32]} 11. Nd2 {[%clk 0:02:56]}  O-O-O {[%clk 0:02:30]} 12. f4 {[%clk 0:02:56]}  exf4 {[%clk 0:02:25]} 13. e5 {[%clk 0:02:56]}  Nxg4 {[%clk 0:01:28]} 14. hxg4 {[%clk 0:02:55]}  Qxg4 {[%clk 0:01:20]} 15. exd6 {[%clk 0:02:48]}  f3 {[%clk 0:01:15]} 16. Nxf3 {[%clk 0:02:41]}  Qxf3 {[%clk 0:01:15]} 17. Rf1 {[%clk 0:02:41]}  Qh5 {[%clk 0:01:07]} 18. dxc7 {[%clk 0:02:35]}  Rde8 {[%clk 0:01:04]} 19. Qd2 {[%clk 0:02:30]}  Qh4+ {[%clk 0:01:02]} 20. Rf2 {[%clk 0:02:22]}  Qh1+ {[%clk 0:00:55]} 21. Rf1 {[%clk 0:02:21]}  Qh4+ {[%clk 0:00:55]} 22. Kd1 {[%clk 0:01:42]}  Bh5 {[%clk 0:00:53]} 23. Kc1 {[%clk 0:01:43]}  Rxe2 {[%clk 0:00:49]} 24. Qa5 {[%clk 0:01:31]}  Rhe8 {[%clk 0:00:34]} 25. Bc3 {[%clk 0:01:03]}  Qh2 {[%clk 0:00:19]} 26. Kb2 {[%clk 0:01:02]}  Rxc2+ {[%clk 0:00:19]} 27. Ka3 {[%clk 0:01:03]}  b6 {[%clk 0:00:15]} 28. Qxa6+ {[%clk 0:00:57]}  Kxc7 {[%clk 0:00:15]} 29. Qa7+ {[%clk 0:00:58]}  Kd6 {[%clk 0:00:14]} 30. Bb4+ {[%clk 0:00:56]}  c5 {[%clk 0:00:14]} 31. Qxb6+ {[%clk 0:00:57]}  Kd5 {[%clk 0:00:14]} 32. Qb7+ {[%clk 0:00:48]}  Kd4 {[%clk 0:00:12]} 33. Qd7+ {[%clk 0:00:45]}  Qd6 {[%clk 0:00:11]} 34. Qxd6+ {[%clk 0:00:45]} 1-0


[Site "https://www.chess.com"]

[Event "Titled Tuesday Blitz October 18 Late 2022"]
[White "Zhigalko, Sergei"]
[Black "Thomforde-Toates, Noah"]
[WhiteFideId "13502956"]
[BlackFideId "30951992"]
[WhiteElo "2662"]
[BlackElo "2686"]
[Result "1-0"]
[Round "09"]
[TimeControl "180+1"]
[Date "2022.10.18"]
[WhiteClock "0:00:09"]
[BlackClock "0:00:23"]

1. e4 {[%clk 0:03:00]}  c5 {[%clk 0:02:42]} 2. c3 {[%clk 0:02:59]}  d5 {[%clk 0:02:41]} 3. exd5 {[%clk 0:03:00]}  Qxd5 {[%clk 0:02:42]} 4. d4 {[%clk 0:03:00]}  Nc6 {[%clk 0:02:41]} 5. Nf3 {[%clk 0:03:00]}  Bg4 {[%clk 0:02:41]} 6. dxc5 {[%clk 0:03:00]}  Qxc5 {[%clk 0:02:39]} 7. Na3 {[%clk 0:02:58]}  Nf6 {[%clk 0:02:36]} 8. Nb5 {[%clk 0:02:56]}  Rc8 {[%clk 0:02:32]} 9. Be3 {[%clk 0:02:56]}  Qh5 {[%clk 0:02:31]} 10. Nxa7 {[%clk 0:02:55]}  Rd8 {[%clk 0:02:16]} 11. Qa4 {[%clk 0:02:31]}  Bxf3 {[%clk 0:02:09]} 12. gxf3 {[%clk 0:02:30]}  Qxf3 {[%clk 0:02:10]} 13. Rg1 {[%clk 0:02:27]}  Qe4 {[%clk 0:01:10]} 14. Bb5 {[%clk 0:01:56]}  Qxa4 {[%clk 0:01:08]} 15. Bxa4 {[%clk 0:01:57]}  Kd7 {[%clk 0:01:06]} 16. Bb6 {[%clk 0:01:46]}  Rb8 {[%clk 0:00:57]} 17. O-O-O+ {[%clk 0:01:42]}  Ke6 {[%clk 0:00:57]} 18. Nb5 {[%clk 0:01:12]}  Ne8 {[%clk 0:00:47]} 19. Rd3 {[%clk 0:00:50]}  g6 {[%clk 0:00:32]} 20. Bb3+ {[%clk 0:00:35]}  Kf5 {[%clk 0:00:26]} 21. Rf3+ {[%clk 0:00:24]}  Ke4 {[%clk 0:00:24]} 22. Re3+ {[%clk 0:00:20]}  Kf4 {[%clk 0:00:23]} 23. Bxf7 {[%clk 0:00:17]}  Nd6 {[%clk 0:00:22]} 24. Nxd6 {[%clk 0:00:14]}  exd6 {[%clk 0:00:21]} 25. Be6 {[%clk 0:00:15]}  h5 {[%clk 0:00:19]} 26. Rxg6 {[%clk 0:00:09]}  Rh6 {[%clk 0:00:18]} 27. Rgg3 {[%clk 0:00:08]}  Rf6 {[%clk 0:00:17]} 28. h4 {[%clk 0:00:08]}  Rxe6 {[%clk 0:00:13]} 29. Rxe6 {[%clk 0:00:08]}  Ne5 {[%clk 0:00:14]} 30. Be3+ {[%clk 0:00:07]}  Kf5 {[%clk 0:00:14]} 31. Rxe5+ {[%clk 0:00:03]}  dxe5 {[%clk 0:00:14]} 32. Rg5+ {[%clk 0:00:03]}  Ke4 {[%clk 0:00:14]} 33. Rxh5 {[%clk 0:00:04]}  Bd6 {[%clk 0:00:13]} 34. Kc2 {[%clk 0:00:04]}  Rg8 {[%clk 0:00:12]} 35. Rh7 {[%clk 0:00:04]}  Rg2 {[%clk 0:00:11]} 36. Rxb7 {[%clk 0:00:03]}  Kf3 {[%clk 0:00:12]} 37. Kb3 {[%clk 0:00:03]}  e4 {[%clk 0:00:12]} 38. Rb6 {[%clk 0:00:03]}  Be5 {[%clk 0:00:11]} 39. Rb5 {[%clk 0:00:03]}  Bb8 {[%clk 0:00:10]} 40. h5 {[%clk 0:00:03]}  Rh2 {[%clk 0:00:10]} 41. h6 {[%clk 0:00:03]}  Bc7 {[%clk 0:00:10]} 42. Rd5 {[%clk 0:00:03]}  Ke2 {[%clk 0:00:10]} 43. Rf5 {[%clk 0:00:03]}  Bd6 {[%clk 0:00:10]} 44. Rf7 {[%clk 0:00:03]}  Rh5 {[%clk 0:00:09]} 45. h7 {[%clk 0:00:03]}  Rb5+ {[%clk 0:00:09]} 46. Kc4 {[%clk 0:00:03]}  Rh5 {[%clk 0:00:10]} 47. Bd4 {[%clk 0:00:04]}  Rxh7 {[%clk 0:00:10]} 48. Rxh7 {[%clk 0:00:04]}  Bf4 {[%clk 0:00:11]} 49. Rf7 {[%clk 0:00:04]}  Kf3 {[%clk 0:00:12]} 50. Be3 {[%clk 0:00:03]}  Ke2 {[%clk 0:00:12]} 51. Bxf4 {[%clk 0:00:04]}  Kd1 {[%clk 0:00:13]} 52. Be5 {[%clk 0:00:04]}  Kc2 {[%clk 0:00:14]} 53. Kd4 {[%clk 0:00:05]}  Kb1 {[%clk 0:00:15]} 54. Kxe4 {[%clk 0:00:05]}  Kxa2 {[%clk 0:00:15]} 55. f4 {[%clk 0:00:05]}  Kxb2 {[%clk 0:00:16]} 56. Kf5 {[%clk 0:00:06]}  Kb3 {[%clk 0:00:17]} 57. Kg4 {[%clk 0:00:07]}  Kc4 {[%clk 0:00:18]} 58. Rf6 {[%clk 0:00:07]}  Kd5 {[%clk 0:00:19]} 59. Rd6+ {[%clk 0:00:07]}  Kc4 {[%clk 0:00:19]} 60. f5 {[%clk 0:00:07]}  Kc5 {[%clk 0:00:19]} 61. c4 {[%clk 0:00:07]}  Kxc4 {[%clk 0:00:20]} 62. f6 {[%clk 0:00:08]}  Kb3 {[%clk 0:00:21]} 63. f7 {[%clk 0:00:08]}  Kc2 {[%clk 0:00:21]} 64. f8=Q {[%clk 0:00:08]}  Kb3 {[%clk 0:00:22]} 65. Qc8 {[%clk 0:00:09]}  Kb4 {[%clk 0:00:23]} 66. Rb6+ {[%clk 0:00:09]}  Ka5 {[%clk 0:00:23]} 67. Qa6# {[%clk 0:00:09]} 1-0


[Site "https://www.chess.com"]

[Event "Titled Tuesday Blitz October 18 Late 2022"]
[White "miragha_yev"]
[Black "Castellanos Gomez, Alejandro"]
[BlackFideId "22284141"]
[WhiteElo "2767"]
[BlackElo "2168"]
[Result "1-0"]
[Round "09"]
[TimeControl "180+1"]
[Date "2022.10.18"]
[WhiteClock "0:00:45"]
[BlackClock "0:00:01"]

1. d4 {[%clk 0:03:00]}  e6 {[%clk 0:02:58]} 2. e4 {[%clk 0:02:59]}  d5 {[%clk 0:02:58]} 3. Nc3 {[%clk 0:02:55]}  Nf6 {[%clk 0:02:58]} 4. Bd3 {[%clk 0:02:54]}  c5 {[%clk 0:02:55]} 5. exd5 {[%clk 0:02:54]}  exd5 {[%clk 0:02:55]} 6. Nf3 {[%clk 0:02:53]}  c4 {[%clk 0:02:51]} 7. Be2 {[%clk 0:02:51]}  Nc6 {[%clk 0:02:51]} 8. O-O {[%clk 0:02:50]}  Be7 {[%clk 0:02:48]} 9. h3 {[%clk 0:02:49]}  O-O {[%clk 0:02:48]} 10. Bf4 {[%clk 0:02:49]}  Bf5 {[%clk 0:02:43]} 11. Ne5 {[%clk 0:02:48]}  Rc8 {[%clk 0:02:42]} 12. Bf3 {[%clk 0:02:41]}  a6 {[%clk 0:02:24]} 13. Re1 {[%clk 0:02:38]}  b5 {[%clk 0:02:19]} 14. Ne2 {[%clk 0:02:32]}  Be4 {[%clk 0:02:17]} 15. Nxc6 {[%clk 0:02:25]}  Rxc6 {[%clk 0:02:16]} 16. Ng3 {[%clk 0:02:25]}  Bxf3 {[%clk 0:02:14]} 17. Qxf3 {[%clk 0:02:26]}  Re8 {[%clk 0:01:57]} 18. Nf5 {[%clk 0:02:24]}  Bf8 {[%clk 0:01:51]} 19. Rxe8 {[%clk 0:02:23]}  Qxe8 {[%clk 0:01:47]} 20. Be5 {[%clk 0:02:22]}  Ne4 {[%clk 0:01:38]} 21. Ng3 {[%clk 0:02:14]}  Nxg3 {[%clk 0:01:29]} 22. Bxg3 {[%clk 0:02:15]}  Qd7 {[%clk 0:00:54]} 23. Re1 {[%clk 0:02:09]}  Re6 {[%clk 0:00:52]} 24. Kf1 {[%clk 0:02:09]}  g6 {[%clk 0:00:46]} 25. Be5 {[%clk 0:02:03]}  Bg7 {[%clk 0:00:35]} 26. Bxg7 {[%clk 0:02:01]}  Kxg7 {[%clk 0:00:34]} 27. Qf4 {[%clk 0:02:00]}  Rxe1+ {[%clk 0:00:33]} 28. Kxe1 {[%clk 0:02:00]}  Qe6+ {[%clk 0:00:33]} 29. Qe5+ {[%clk 0:01:53]}  Qxe5+ {[%clk 0:00:26]} 30. dxe5 {[%clk 0:01:53]}  g5 {[%clk 0:00:27]} 31. Ke2 {[%clk 0:01:28]}  f6 {[%clk 0:00:11]} 32. exf6+ {[%clk 0:01:25]}  Kxf6 {[%clk 0:00:11]} 33. Ke3 {[%clk 0:01:25]}  Ke5 {[%clk 0:00:12]} 34. c3 {[%clk 0:01:26]}  a5 {[%clk 0:00:12]} 35. g3 {[%clk 0:01:21]}  b4 {[%clk 0:00:11]} 36. f4+ {[%clk 0:01:18]}  gxf4+ {[%clk 0:00:08]} 37. gxf4+ {[%clk 0:01:19]}  Kf5 {[%clk 0:00:09]} 38. Kd4 {[%clk 0:01:19]}  bxc3 {[%clk 0:00:08]} 39. bxc3 {[%clk 0:01:19]}  Kxf4 {[%clk 0:00:09]} 40. Kxd5 {[%clk 0:01:11]}  Kg3 {[%clk 0:00:09]} 41. Kxc4 {[%clk 0:01:09]}  Kxh3 {[%clk 0:00:09]} 42. Kb5 {[%clk 0:01:07]}  Kg3 {[%clk 0:00:09]} 43. c4 {[%clk 0:01:04]}  h5 {[%clk 0:00:10]} 44. c5 {[%clk 0:01:04]}  h4 {[%clk 0:00:11]} 45. c6 {[%clk 0:01:05]}  h3 {[%clk 0:00:12]} 46. c7 {[%clk 0:01:06]}  h2 {[%clk 0:00:13]} 47. c8=Q {[%clk 0:01:06]}  h1=Q {[%clk 0:00:13]} 48. Qc3+ {[%clk 0:01:05]}  Kg4 {[%clk 0:00:13]} 49. Qc4+ {[%clk 0:01:02]}  Kf5 {[%clk 0:00:12]} 50. Kxa5 {[%clk 0:01:00]}  Qa8+ {[%clk 0:00:11]} 51. Kb4 {[%clk 0:01:00]}  Kf6 {[%clk 0:00:07]} 52. a4 {[%clk 0:01:00]}  Qb7+ {[%clk 0:00:03]} 53. Qb5 {[%clk 0:00:56]}  Qe4+ {[%clk 0:00:03]} 54. Ka5 {[%clk 0:00:56]}  Qe1+ {[%clk 0:00:02]} 55. Ka6 {[%clk 0:00:55]}  Ke7 {[%clk 0:00:01]} 56. a5 {[%clk 0:00:53]}  Kd8 {[%clk 0:00:02]} 57. Qb8+ {[%clk 0:00:53]}  Kd7 {[%clk 0:00:02]} 58. Qb7+ {[%clk 0:00:53]}  Kd6 {[%clk 0:00:02]} 59. Qb6+ {[%clk 0:00:53]}  Kd7 {[%clk 0:00:03]} 60. Ka7 {[%clk 0:00:50]}  Kc8 {[%clk 0:00:03]} 61. Qb8+ {[%clk 0:00:49]}  Kd7 {[%clk 0:00:03]} 62. Qb7+ {[%clk 0:00:50]}  Kd8 {[%clk 0:00:03]} 63. a6 {[%clk 0:00:50]}  Ke8 {[%clk 0:00:02]} 64. Kb8 {[%clk 0:00:48]}  Qe5+ {[%clk 0:00:01]} 65. Qc7 {[%clk 0:00:47]}  Qb5+ {[%clk 0:00:02]} 66. Ka7 {[%clk 0:00:45]}  Kf8 {[%clk 0:00:01]} 67. Qb8+ {[%clk 0:00:45]} 1-0


[Site "https://www.chess.com"]

[Event "Titled Tuesday Blitz October 18 Late 2022"]
[White "Ballester Llagaria, Luis Eduardo"]
[Black "Baskakov, Egor"]
[WhiteFideId "2297620"]
[BlackFideId "24197866"]
[WhiteElo "2344"]
[BlackElo "2211"]
[Result "0-1"]
[Round "10"]
[TimeControl "180+1"]
[Date "2022.10.18"]
[WhiteClock "0:00:29"]
[BlackClock "0:01:43"]

1. e4 {[%clk 0:03:00]}  c5 {[%clk 0:02:59]} 2. Nc3 {[%clk 0:03:01]}  Nc6 {[%clk 0:02:59]} 3. Bb5 {[%clk 0:03:00]}  g6 {[%clk 0:02:59]} 4. Bxc6 {[%clk 0:03:00]}  dxc6 {[%clk 0:03:00]} 5. f4 {[%clk 0:03:00]}  Bg7 {[%clk 0:02:59]} 6. Nf3 {[%clk 0:03:01]}  Bg4 {[%clk 0:02:59]} 7. O-O {[%clk 0:03:00]}  e5 {[%clk 0:02:59]} 8. h3 {[%clk 0:02:56]}  Bxf3 {[%clk 0:02:59]} 9. Qxf3 {[%clk 0:02:57]}  exf4 {[%clk 0:02:59]} 10. Qxf4 {[%clk 0:02:57]}  Qd7 {[%clk 0:02:59]} 11. d3 {[%clk 0:02:51]}  Nf6 {[%clk 0:02:59]} 12. Be3 {[%clk 0:02:42]}  b6 {[%clk 0:02:59]} 13. Qh4 {[%clk 0:02:05]}  Qe6 {[%clk 0:02:52]} 14. Bh6 {[%clk 0:01:49]}  O-O {[%clk 0:02:46]} 15. Bxg7 {[%clk 0:01:44]}  Kxg7 {[%clk 0:02:46]} 16. Rf2 {[%clk 0:01:42]}  Nd7 {[%clk 0:02:46]} 17. Raf1 {[%clk 0:01:40]}  f6 {[%clk 0:02:47]} 18. a3 {[%clk 0:01:25]}  Rf7 {[%clk 0:02:33]} 19. Ne2 {[%clk 0:01:25]}  Raf8 {[%clk 0:02:30]} 20. Nf4 {[%clk 0:01:25]}  Qd6 {[%clk 0:02:31]} 21. Qg4 {[%clk 0:01:18]}  Ne5 {[%clk 0:02:29]} 22. Qe6 {[%clk 0:01:11]}  Qc7 {[%clk 0:02:27]} 23. c3 {[%clk 0:00:58]}  Re7 {[%clk 0:02:10]} 24. d4 {[%clk 0:00:49]}  cxd4 {[%clk 0:02:06]} 25. cxd4 {[%clk 0:00:50]}  Nd3 {[%clk 0:02:06]} 26. Qc4 {[%clk 0:00:34]}  Nxf2 {[%clk 0:02:03]} 27. Rxf2 {[%clk 0:00:30]}  Qd7 {[%clk 0:02:04]} 28. d5 {[%clk 0:00:27]}  cxd5 {[%clk 0:02:02]} 29. exd5 {[%clk 0:00:28]}  Rc8 {[%clk 0:01:44]} 30. Ne6+ {[%clk 0:00:28]}  Qxe6 {[%clk 0:01:43]} 31. dxe6 {[%clk 0:00:29]}  Rxc4 {[%clk 0:01:43]} 0-1


[Site "https://www.chess.com"]

[Event "Titled Tuesday Blitz October 18 Late 2022"]
[White "Banzea, Alexandru-Bogdan"]
[Black "Luxama, Jacques Muller"]
[WhiteFideId "1232622"]
[BlackFideId "11900113"]
[WhiteElo "2294"]
[BlackElo "1931"]
[Result "1/2-1/2"]
[Round "10"]
[TimeControl "180+1"]
[Date "2022.10.19"]
[WhiteClock "0:01:06"]
[BlackClock "0:01:54"]

1. d4 {[%clk 0:03:00]}  Nf6 {[%clk 0:02:57]} 2. Bf4 {[%clk 0:02:59]}  d5 {[%clk 0:02:53]} 3. Nf3 {[%clk 0:02:55]}  Bf5 {[%clk 0:02:52]} 4. e3 {[%clk 0:02:55]}  e6 {[%clk 0:02:50]} 5. Bd3 {[%clk 0:02:56]}  Bg6 {[%clk 0:02:47]} 6. Ne5 {[%clk 0:02:54]}  Bxd3 {[%clk 0:02:41]} 7. cxd3 {[%clk 0:02:50]}  Nbd7 {[%clk 0:02:39]} 8. Nc3 {[%clk 0:02:49]}  Bd6 {[%clk 0:02:37]} 9. O-O {[%clk 0:02:46]}  O-O {[%clk 0:02:36]} 10. Rc1 {[%clk 0:02:45]}  a6 {[%clk 0:02:34]} 11. Qf3 {[%clk 0:02:26]}  Qe7 {[%clk 0:02:27]} 12. a3 {[%clk 0:02:17]}  c5 {[%clk 0:02:14]} 13. Nxd7 {[%clk 0:02:11]}  Qxd7 {[%clk 0:02:12]} 14. Bxd6 {[%clk 0:02:10]}  Qxd6 {[%clk 0:02:11]} 15. dxc5 {[%clk 0:02:11]}  Qxc5 {[%clk 0:02:07]} 16. d4 {[%clk 0:01:41]}  Qb6 {[%clk 0:02:06]} 17. b4 {[%clk 0:01:39]}  a5 {[%clk 0:02:03]} 18. Na4 {[%clk 0:01:25]}  Qb5 {[%clk 0:02:02]} 19. Nc3 {[%clk 0:01:20]}  Qb6 {[%clk 0:01:56]} 20. Na4 {[%clk 0:01:13]}  Qb5 {[%clk 0:01:56]} 21. Nc3 {[%clk 0:01:06]}  Qb6 {[%clk 0:01:54]} 1/2-1/2


[Site "https://www.chess.com"]

[Event "Titled Tuesday Blitz October 18 Late 2022"]
[White "Bluebaum, Matthias"]
[Black "Bortnyk, Olexandr"]
[WhiteFideId "24651516"]
[BlackFideId "14120828"]
[WhiteElo "2633"]
[BlackElo "2723"]
[Result "1-0"]
[Round "10"]
[TimeControl "180+1"]
[Date "2022.10.18"]
[WhiteClock "0:00:20"]
[BlackClock "0:00:01"]

1. d4 {[%clk 0:03:00]}  e6 {[%clk 0:02:25]} 2. c4 {[%clk 0:03:00]}  b6 {[%clk 0:02:19]} 3. a3 {[%clk 0:02:58]}  Bb7 {[%clk 0:02:18]} 4. Nc3 {[%clk 0:02:59]}  f5 {[%clk 0:01:51]} 5. Bf4 {[%clk 0:02:59]}  Nf6 {[%clk 0:01:51]} 6. e3 {[%clk 0:02:56]}  Bd6 {[%clk 0:01:52]} 7. Bxd6 {[%clk 0:02:47]}  cxd6 {[%clk 0:01:53]} 8. d5 {[%clk 0:02:48]}  O-O {[%clk 0:01:51]} 9. Nf3 {[%clk 0:02:47]}  Na6 {[%clk 0:01:49]} 10. Nd4 {[%clk 0:02:41]}  Nc7 {[%clk 0:01:44]} 11. Be2 {[%clk 0:02:37]}  g6 {[%clk 0:01:43]} 12. O-O {[%clk 0:02:35]}  exd5 {[%clk 0:01:40]} 13. cxd5 {[%clk 0:02:28]}  Ncxd5 {[%clk 0:01:36]} 14. Qb3 {[%clk 0:02:26]}  Kg7 {[%clk 0:01:33]} 15. Bf3 {[%clk 0:02:21]}  Nxc3 {[%clk 0:01:25]} 16. Bxb7 {[%clk 0:02:19]}  Rb8 {[%clk 0:01:11]} 17. Qxc3 {[%clk 0:02:18]}  Rxb7 {[%clk 0:01:12]} 18. Nb5 {[%clk 0:02:19]}  d5 {[%clk 0:01:00]} 19. Rac1 {[%clk 0:02:17]}  Qe7 {[%clk 0:00:58]} 20. Rfd1 {[%clk 0:02:09]}  Kh6 {[%clk 0:00:54]} 21. Nc7 {[%clk 0:01:37]}  Rc8 {[%clk 0:00:49]} 22. Qd4 {[%clk 0:01:38]}  Rbb8 {[%clk 0:00:07]} 23. h3 {[%clk 0:01:17]}  Qd6 {[%clk 0:00:03]} 24. Nb5 {[%clk 0:01:09]}  Qe6 {[%clk 0:00:03]} 25. Nxa7 {[%clk 0:01:02]}  Rxc1 {[%clk 0:00:04]} 26. Rxc1 {[%clk 0:01:02]}  Ne4 {[%clk 0:00:05]} 27. f3 {[%clk 0:01:01]}  Nd6 {[%clk 0:00:04]} 28. Rd1 {[%clk 0:00:39]}  Re8 {[%clk 0:00:04]} 29. Qxd5 {[%clk 0:00:36]}  Qxe3+ {[%clk 0:00:04]} 30. Kh1 {[%clk 0:00:36]}  Nb7 {[%clk 0:00:02]} 31. Qxb7 {[%clk 0:00:34]}  Qf2 {[%clk 0:00:02]} 32. Qc7 {[%clk 0:00:27]}  Re2 {[%clk 0:00:01]} 33. Qf4+ {[%clk 0:00:26]}  g5 {[%clk 0:00:02]} 34. Rd6+ {[%clk 0:00:20]}  Kh5 {[%clk 0:00:01]} 35. g4+ {[%clk 0:00:20]}  fxg4 {[%clk 0:00:01]} 36. Qxg4# {[%clk 0:00:20]} 1-0


[Site "https://www.chess.com"]